[Event "Titled Tuesday Blitz July 26 Late 2022"]
[White "Deviprasath, Sharvesh"]
[Black "Blanco Ronquillo, Humberto L."]
[WhiteFideId "30938228"]
[BlackFideId "3504239"]
[WhiteElo "2102"]
[BlackElo "2423"]
[Result "1-0"]
[Round "05"]
[TimeControl "180+1"]
[Date "2022.07.26"]
[WhiteClock "0:01:13"]
[BlackClock "0:00:01"]

1. c4 {[%clk 0:03:00]}  e6 {[%clk 0:02:59]} 2. Nf3 {[%clk 0:02:59]}  d5 {[%clk 0:02:59]} 3. e3 {[%clk 0:02:59]}  Nf6 {[%clk 0:02:59]} 4. Nc3 {[%clk 0:03:00]}  Bd6 {[%clk 0:02:53]} 5. d4 {[%clk 0:02:56]}  b6 {[%clk 0:02:53]} 6. b3 {[%clk 0:02:55]}  O-O {[%clk 0:02:52]} 7. Bb2 {[%clk 0:02:56]}  Bb7 {[%clk 0:02:52]} 8. cxd5 {[%clk 0:02:44]}  exd5 {[%clk 0:02:51]} 9. Bd3 {[%clk 0:02:45]}  Re8 {[%clk 0:02:48]} 10. O-O {[%clk 0:02:45]}  Nbd7 {[%clk 0:02:48]} 11. Rc1 {[%clk 0:02:42]}  a6 {[%clk 0:02:47]} 12. Qc2 {[%clk 0:02:41]}  Ne4 {[%clk 0:02:44]} 13. Ne2 {[%clk 0:02:40]}  Qf6 {[%clk 0:02:42]} 14. Ng3 {[%clk 0:02:39]}  g6 {[%clk 0:02:29]} 15. Ne5 {[%clk 0:02:28]}  Qe7 {[%clk 0:02:01]} 16. f3 {[%clk 0:02:07]}  Nxg3 {[%clk 0:02:00]} 17. hxg3 {[%clk 0:02:08]}  Nxe5 {[%clk 0:01:52]} 18. dxe5 {[%clk 0:02:09]}  Bxe5 {[%clk 0:01:53]} 19. Bxe5 {[%clk 0:02:10]}  Qxe5 {[%clk 0:01:53]} 20. Qxc7 {[%clk 0:02:11]}  Qxe3+ {[%clk 0:01:53]} 21. Kh2 {[%clk 0:02:02]}  Re7 {[%clk 0:01:47]} 22. Qd6 {[%clk 0:01:44]}  Re6 {[%clk 0:01:33]} 23. Qd7 {[%clk 0:01:42]}  g5 {[%clk 0:01:12]} 24. Bf5 {[%clk 0:01:35]}  Re7 {[%clk 0:00:19]} 25. Qd6 {[%clk 0:01:33]}  d4 {[%clk 0:00:15]} 26. Qh6 {[%clk 0:01:27]}  g4 {[%clk 0:00:09]} 27. f4 {[%clk 0:01:26]}  f6 {[%clk 0:00:06]} 28. Rfe1 {[%clk 0:01:24]}  Qf2 {[%clk 0:00:02]} 29. Rg1 {[%clk 0:01:20]}  Rae8 {[%clk 0:00:02]} 30. Qxf6 {[%clk 0:01:16]}  Rg7 {[%clk 0:00:01]} 31. Be6+ {[%clk 0:01:15]}  Kh8 {[%clk 0:00:01]} 32. Rc7 {[%clk 0:01:13]} 1-0


[Site "https://www.chess.com"]

[Event "Titled Tuesday Blitz July 26 Late 2022"]
[White "Drygalov, Andrey"]
[Black "Korchmar, Vasiliy"]
[WhiteFideId "24171735"]
[BlackFideId "24131750"]
[WhiteElo "2531"]
[BlackElo "2370"]
[Result "1-0"]
[Round "05"]
[TimeControl "180+1"]
[Date "2022.07.26"]
[WhiteClock "0:00:02"]
[BlackClock "0:00:03"]

1. d4 {[%clk 0:02:59]}  d5 {[%clk 0:02:59]} 2. c4 {[%clk 0:02:59]}  c6 {[%clk 0:03:00]} 3. Nf3 {[%clk 0:02:59]}  Nf6 {[%clk 0:03:00]} 4. e3 {[%clk 0:03:00]}  e6 {[%clk 0:03:00]} 5. Nc3 {[%clk 0:03:00]}  Nbd7 {[%clk 0:03:00]} 6. Qc2 {[%clk 0:03:00]}  Bd6 {[%clk 0:02:59]} 7. Be2 {[%clk 0:02:59]}  dxc4 {[%clk 0:02:59]} 8. Bxc4 {[%clk 0:02:59]}  O-O {[%clk 0:03:00]} 9. O-O {[%clk 0:02:59]}  e5 {[%clk 0:03:00]} 10. h3 {[%clk 0:02:56]}  exd4 {[%clk 0:03:01]} 11. exd4 {[%clk 0:02:54]}  Nb6 {[%clk 0:03:01]} 12. Bb3 {[%clk 0:02:55]}  Re8 {[%clk 0:03:02]} 13. Bg5 {[%clk 0:02:53]}  Be6 {[%clk 0:03:00]} 14. Rfe1 {[%clk 0:02:50]}  Nbd5 {[%clk 0:02:45]} 15. Nxd5 {[%clk 0:02:47]}  cxd5 {[%clk 0:02:42]} 16. Ba4 {[%clk 0:02:46]}  Rf8 {[%clk 0:02:36]} 17. Qb3 {[%clk 0:02:34]}  h6 {[%clk 0:02:17]} 18. Bxf6 {[%clk 0:02:31]}  Qxf6 {[%clk 0:02:18]} 19. Qxb7 {[%clk 0:02:14]}  Rab8 {[%clk 0:02:00]} 20. Qc6 {[%clk 0:01:45]}  Rb6 {[%clk 0:02:00]} 21. Qc3 {[%clk 0:01:45]}  Bb4 {[%clk 0:02:00]} 22. Qc2 {[%clk 0:01:40]}  Bxe1 {[%clk 0:01:59]} 23. Rxe1 {[%clk 0:01:41]}  Bxh3 {[%clk 0:01:59]} 24. Ne5 {[%clk 0:01:41]}  Qg5 {[%clk 0:01:47]} 25. f3 {[%clk 0:01:04]}  Rc8 {[%clk 0:01:41]} 26. Qf2 {[%clk 0:01:04]}  Bf5 {[%clk 0:01:27]} 27. Bb3 {[%clk 0:01:01]}  Rc1 {[%clk 0:01:23]} 28. g3 {[%clk 0:00:46]}  Be6 {[%clk 0:01:08]} 29. f4 {[%clk 0:00:40]}  Rxe1+ {[%clk 0:01:07]} 30. Qxe1 {[%clk 0:00:41]}  Qf5 {[%clk 0:01:03]} 31. Qc3 {[%clk 0:00:39]}  Rb8 {[%clk 0:00:56]} 32. Bc2 {[%clk 0:00:31]}  Qh3 {[%clk 0:00:48]} 33. Qd3 {[%clk 0:00:26]}  g6 {[%clk 0:00:19]} 34. Nxg6 {[%clk 0:00:19]}  Rxb2 {[%clk 0:00:19]} 35. Ne5 {[%clk 0:00:10]}  Rxa2 {[%clk 0:00:13]} 36. f5 {[%clk 0:00:03]}  Ra1+ {[%clk 0:00:08]} 37. Kf2 {[%clk 0:00:03]}  Qh2+ {[%clk 0:00:08]} 38. Kf3 {[%clk 0:00:03]}  Qh1+ {[%clk 0:00:06]} 39. Kg4 {[%clk 0:00:02]}  Bc8 {[%clk 0:00:06]} 40. Qc3 {[%clk 0:00:02]}  Qe4+ {[%clk 0:00:03]} 41. Bxe4 {[%clk 0:00:02]} 1-0


[Site "https://www.chess.com"]

[Event "Titled Tuesday Blitz July 26 Late 2022"]
[White "Fiedorek, Michal"]
[Black "Pfreundt, Jakob"]
[WhiteFideId "1199528"]
[BlackFideId "12918156"]
[WhiteElo "1833"]
[BlackElo "2345"]
[Result "1-0"]
[Round "05"]
[TimeControl "180+1"]
[Date "2022.07.27"]
[WhiteClock "0:00:06"]
[BlackClock "0:00:04"]

1. e4 {[%clk 0:03:00]}  e5 {[%clk 0:02:58]} 2. Nf3 {[%clk 0:03:01]}  Nf6 {[%clk 0:02:58]} 3. Nxe5 {[%clk 0:03:00]}  d6 {[%clk 0:02:58]} 4. Nf3 {[%clk 0:03:00]}  Nxe4 {[%clk 0:02:59]} 5. Nc3 {[%clk 0:03:00]}  Nf6 {[%clk 0:02:59]} 6. d4 {[%clk 0:03:00]}  Be7 {[%clk 0:02:58]} 7. Bd3 {[%clk 0:02:59]}  O-O {[%clk 0:02:58]} 8. O-O {[%clk 0:02:59]}  Re8 {[%clk 0:02:59]} 9. h3 {[%clk 0:02:59]}  a6 {[%clk 0:02:59]} 10. Re1 {[%clk 0:02:59]}  b5 {[%clk 0:02:58]} 11. a4 {[%clk 0:02:43]}  b4 {[%clk 0:02:58]} 12. Ne4 {[%clk 0:02:43]}  Bb7 {[%clk 0:02:56]} 13. Ng3 {[%clk 0:02:42]}  Nbd7 {[%clk 0:02:51]} 14. Nf5 {[%clk 0:02:38]}  Bf8 {[%clk 0:02:50]} 15. Bg5 {[%clk 0:02:37]}  Rxe1+ {[%clk 0:02:38]} 16. Qxe1 {[%clk 0:02:25]}  h6 {[%clk 0:02:33]} 17. Bh4 {[%clk 0:02:24]}  g6 {[%clk 0:02:30]} 18. Ne3 {[%clk 0:02:17]}  Bxf3 {[%clk 0:02:20]} 19. gxf3 {[%clk 0:02:18]}  Bg7 {[%clk 0:02:13]} 20. Qxb4 {[%clk 0:02:15]}  Rb8 {[%clk 0:02:00]} 21. Qd2 {[%clk 0:02:05]}  Qc8 {[%clk 0:01:57]} 22. b4 {[%clk 0:02:00]}  Qb7 {[%clk 0:01:50]} 23. Kg2 {[%clk 0:01:44]}  Nh5 {[%clk 0:01:42]} 24. Bg3 {[%clk 0:01:44]}  Bxd4 {[%clk 0:01:37]} 25. Rb1 {[%clk 0:01:43]}  Be5 {[%clk 0:01:32]} 26. Be4 {[%clk 0:01:42]}  Qa7 {[%clk 0:01:31]} 27. Ng4 {[%clk 0:01:32]}  Bg7 {[%clk 0:01:08]} 28. Nxh6+ {[%clk 0:01:30]}  Bxh6 {[%clk 0:00:55]} 29. Qxh6 {[%clk 0:01:31]}  Qd4 {[%clk 0:00:52]} 30. b5 {[%clk 0:01:07]}  axb5 {[%clk 0:00:53]} 31. Rxb5 {[%clk 0:00:47]}  Rxb5 {[%clk 0:00:53]} 32. axb5 {[%clk 0:00:48]}  Ndf6 {[%clk 0:00:43]} 33. Qe3 {[%clk 0:00:39]}  Qxe3 {[%clk 0:00:34]} 34. fxe3 {[%clk 0:00:38]}  Nxe4 {[%clk 0:00:34]} 35. fxe4 {[%clk 0:00:38]}  Nxg3 {[%clk 0:00:29]} 36. Kxg3 {[%clk 0:00:37]}  Kg7 {[%clk 0:00:30]} 37. Kf4 {[%clk 0:00:32]}  Kf6 {[%clk 0:00:30]} 38. h4 {[%clk 0:00:29]}  Ke6 {[%clk 0:00:30]} 39. Kg5 {[%clk 0:00:22]}  Ke5 {[%clk 0:00:31]} 40. Kh6 {[%clk 0:00:19]}  Kf6 {[%clk 0:00:17]} 41. c3 {[%clk 0:00:19]}  Ke5 {[%clk 0:00:16]} 42. Kg7 {[%clk 0:00:20]}  Ke6 {[%clk 0:00:16]} 43. c4 {[%clk 0:00:17]}  Ke7 {[%clk 0:00:16]} 44. e5 {[%clk 0:00:08]}  dxe5 {[%clk 0:00:16]} 45. e4 {[%clk 0:00:08]}  Ke6 {[%clk 0:00:07]} 46. c5 {[%clk 0:00:07]}  f5 {[%clk 0:00:07]} 47. exf5+ {[%clk 0:00:07]}  gxf5 {[%clk 0:00:07]} 48. h5 {[%clk 0:00:06]}  f4 {[%clk 0:00:05]} 49. h6 {[%clk 0:00:07]}  f3 {[%clk 0:00:06]} 50. h7 {[%clk 0:00:07]}  f2 {[%clk 0:00:06]} 51. h8=Q {[%clk 0:00:08]}  f1=Q {[%clk 0:00:07]} 52. Qc8+ {[%clk 0:00:06]}  Kd5 {[%clk 0:00:06]} 53. Qxc7 {[%clk 0:00:06]}  Qxb5 {[%clk 0:00:05]} 54. Qd6+ {[%clk 0:00:05]}  Ke4 {[%clk 0:00:04]} 55. c6 {[%clk 0:00:06]}  Qc4 {[%clk 0:00:04]} 56. c7 {[%clk 0:00:06]}  Ke3 {[%clk 0:00:02]} 57. Qd7 {[%clk 0:00:04]}  Qf4 {[%clk 0:00:02]} 58. c8=Q {[%clk 0:00:04]}  Qg5+ {[%clk 0:00:02]} 59. Kf8 {[%clk 0:00:04]}  Qf6+ {[%clk 0:00:02]} 60. Ke8 {[%clk 0:00:04]}  Qh8+ {[%clk 0:00:01]} 61. Ke7 {[%clk 0:00:05]}  Qg7+ {[%clk 0:00:02]} 62. Kd8 {[%clk 0:00:05]}  Qf8+ {[%clk 0:00:03]} 63. Kc7 {[%clk 0:00:05]}  Qc5+ {[%clk 0:00:03]} 64. Qc6 {[%clk 0:00:05]}  Qa7+ {[%clk 0:00:04]} 65. Q8b7 {[%clk 0:00:06]}  Qa5+ {[%clk 0:00:04]} 66. Qbb6+ {[%clk 0:00:06]}  Qxb6+ {[%clk 0:00:04]} 67. Qxb6+ {[%clk 0:00:07]}  Kd3 {[%clk 0:00:04]} 68. Qd6+ {[%clk 0:00:06]}  Kc4 {[%clk 0:00:04]} 69. Qxe5 {[%clk 0:00:06]} 1-0


[Site "https://www.chess.com"]

[Event "Titled Tuesday Blitz July 26 Late 2022"]
[White "Grischuk, Alexander"]
[Black "Grigorov, Grigor"]
[WhiteFideId "4126025"]
[BlackFideId "2907313"]
[WhiteElo "2762"]
[BlackElo "2510"]
[Result "1-0"]
[Round "05"]
[TimeControl "180+1"]
[Date "2022.07.26"]
[WhiteClock "0:00:19"]
[BlackClock "0:00:14"]

1. d4 {[%clk 0:03:00]}  Nf6 {[%clk 0:02:57]} 2. c4 {[%clk 0:03:00]}  e6 {[%clk 0:02:57]} 3. Nc3 {[%clk 0:03:01]}  Bb4 {[%clk 0:02:57]} 4. e3 {[%clk 0:03:01]}  O-O {[%clk 0:02:54]} 5. Bd3 {[%clk 0:03:01]}  d5 {[%clk 0:02:53]} 6. a3 {[%clk 0:03:01]}  Bxc3+ {[%clk 0:02:48]} 7. bxc3 {[%clk 0:03:02]}  dxc4 {[%clk 0:02:49]} 8. Bxc4 {[%clk 0:03:03]}  c5 {[%clk 0:02:49]} 9. Ne2 {[%clk 0:03:03]}  Qc7 {[%clk 0:02:47]} 10. Bd3 {[%clk 0:03:03]}  b6 {[%clk 0:02:46]} 11. e4 {[%clk 0:02:48]}  Ba6 {[%clk 0:02:33]} 12. O-O {[%clk 0:02:45]}  Bxd3 {[%clk 0:02:28]} 13. Qxd3 {[%clk 0:02:46]}  cxd4 {[%clk 0:02:24]} 14. cxd4 {[%clk 0:02:46]}  Nbd7 {[%clk 0:02:23]} 15. Bb2 {[%clk 0:02:20]}  Rac8 {[%clk 0:02:15]} 16. Rac1 {[%clk 0:02:18]}  Qb7 {[%clk 0:02:15]} 17. Ng3 {[%clk 0:02:13]}  Rxc1 {[%clk 0:02:13]} 18. Rxc1 {[%clk 0:02:11]}  Rc8 {[%clk 0:02:13]} 19. Rxc8+ {[%clk 0:02:08]}  Qxc8 {[%clk 0:02:12]} 20. h3 {[%clk 0:02:09]}  h6 {[%clk 0:02:12]} 21. d5 {[%clk 0:01:56]}  exd5 {[%clk 0:02:06]} 22. Nf5 {[%clk 0:01:44]}  Qc7 {[%clk 0:01:10]} 23. exd5 {[%clk 0:01:35]}  Qf4 {[%clk 0:01:09]} 24. Bxf6 {[%clk 0:00:56]}  Nxf6 {[%clk 0:01:08]} 25. d6 {[%clk 0:00:56]}  Kf8 {[%clk 0:00:53]} 26. g3 {[%clk 0:00:49]}  Qc1+ {[%clk 0:00:52]} 27. Kh2 {[%clk 0:00:46]}  Qc6 {[%clk 0:00:48]} 28. Qd4 {[%clk 0:00:43]}  Qd7 {[%clk 0:00:39]} 29. Nxh6 {[%clk 0:00:38]}  Ne8 {[%clk 0:00:36]} 30. Nf5 {[%clk 0:00:37]}  f6 {[%clk 0:00:21]} 31. Qd5 {[%clk 0:00:34]}  g6 {[%clk 0:00:16]} 32. Ne7 {[%clk 0:00:31]}  Nxd6 {[%clk 0:00:15]} 33. Nxg6+ {[%clk 0:00:30]}  Kg7 {[%clk 0:00:14]} 34. Nf4 {[%clk 0:00:21]}  Kf8 {[%clk 0:00:14]} 35. h4 {[%clk 0:00:19]} 1-0


[Site "https://www.chess.com"]

[Event "Titled Tuesday Blitz July 26 Late 2022"]
[White "Kamsky, Gata"]
[Black "Oparin, Grigoriy"]
[WhiteFideId "2000024"]
[BlackFideId "24125890"]
[WhiteElo "2645"]
[BlackElo "2639"]
[Result "1/2-1/2"]
[Round "05"]
[TimeControl "180+1"]
[Date "2022.07.26"]
[WhiteClock "0:01:58"]
[BlackClock "0:02:35"]

1. e4 {[%clk 0:03:00]}  e5 {[%clk 0:03:00]} 2. Nf3 {[%clk 0:03:01]}  Nc6 {[%clk 0:03:01]} 3. Bb5 {[%clk 0:03:01]}  a6 {[%clk 0:03:01]} 4. Ba4 {[%clk 0:03:01]}  Nf6 {[%clk 0:03:01]} 5. O-O {[%clk 0:03:01]}  Nxe4 {[%clk 0:03:02]} 6. d4 {[%clk 0:03:00]}  b5 {[%clk 0:03:02]} 7. Bb3 {[%clk 0:03:00]}  d5 {[%clk 0:03:02]} 8. dxe5 {[%clk 0:03:00]}  Be6 {[%clk 0:03:03]} 9. Qe2 {[%clk 0:02:59]}  Be7 {[%clk 0:03:01]} 10. Rd1 {[%clk 0:02:58]}  O-O {[%clk 0:03:00]} 11. c4 {[%clk 0:02:58]}  bxc4 {[%clk 0:02:55]} 12. Bxc4 {[%clk 0:02:58]}  Bc5 {[%clk 0:02:56]} 13. Be3 {[%clk 0:02:57]}  Bxe3 {[%clk 0:02:54]} 14. Qxe3 {[%clk 0:02:57]}  Qb8 {[%clk 0:02:54]} 15. Bb3 {[%clk 0:02:57]}  Na5 {[%clk 0:02:55]} 16. Nbd2 {[%clk 0:02:52]}  Nxb3 {[%clk 0:02:54]} 17. Nxb3 {[%clk 0:02:39]}  c5 {[%clk 0:02:54]} 18. Nxc5 {[%clk 0:02:37]}  Nxc5 {[%clk 0:02:55]} 19. Qxc5 {[%clk 0:02:37]}  Qxb2 {[%clk 0:02:56]} 20. Qd4 {[%clk 0:02:36]}  Rab8 {[%clk 0:02:49]} 21. h3 {[%clk 0:02:21]}  Rfc8 {[%clk 0:02:49]} 22. Qxb2 {[%clk 0:02:07]}  Rxb2 {[%clk 0:02:49]} 23. Nd4 {[%clk 0:02:07]}  g5 {[%clk 0:02:42]} 24. Rdb1 {[%clk 0:01:57]}  Rd2 {[%clk 0:02:39]} 25. Rd1 {[%clk 0:01:58]}  Rb2 {[%clk 0:02:37]} 26. Rdb1 {[%clk 0:01:58]}  Rd2 {[%clk 0:02:35]} 27. Rd1 {[%clk 0:01:58]}  Rb2 {[%clk 0:02:35]} 1/2-1/2


[Site "https://www.chess.com"]

[Event "Titled Tuesday Blitz July 26 Late 2022"]
[White "Khripachenko, Alexander"]
[Black "Fieberg, Samuel"]
[WhiteFideId "54184975"]
[BlackFideId "12901717"]
[WhiteElo "2147"]
[BlackElo "2422"]
[Result "1-0"]
[Round "05"]
[TimeControl "180+1"]
[Date "2022.07.27"]
[WhiteClock "0:01:23"]
[BlackClock "0:00:08"]

1. e4 {[%clk 0:03:00]}  e5 {[%clk 0:03:00]} 2. Nf3 {[%clk 0:02:55]}  Nc6 {[%clk 0:03:00]} 3. Bc4 {[%clk 0:02:54]}  Bc5 {[%clk 0:03:00]} 4. c3 {[%clk 0:02:53]}  Nf6 {[%clk 0:03:01]} 5. d3 {[%clk 0:02:52]}  O-O {[%clk 0:03:00]} 6. O-O {[%clk 0:02:52]}  d5 {[%clk 0:03:01]} 7. exd5 {[%clk 0:02:51]}  Nxd5 {[%clk 0:03:02]} 8. Re1 {[%clk 0:02:51]}  Bg4 {[%clk 0:03:01]} 9. h3 {[%clk 0:02:50]}  Bh5 {[%clk 0:03:01]} 10. Nbd2 {[%clk 0:02:48]}  Nb6 {[%clk 0:03:01]} 11. Bb5 {[%clk 0:02:47]}  Bd6 {[%clk 0:02:59]} 12. Ne4 {[%clk 0:02:41]}  f5 {[%clk 0:02:55]} 13. Ng3 {[%clk 0:02:40]}  Bg6 {[%clk 0:02:54]} 14. Bxc6 {[%clk 0:02:33]}  bxc6 {[%clk 0:02:54]} 15. Nxe5 {[%clk 0:02:33]}  Bxe5 {[%clk 0:02:48]} 16. Rxe5 {[%clk 0:02:34]}  f4 {[%clk 0:02:49]} 17. Ne4 {[%clk 0:02:34]}  f3 {[%clk 0:02:46]} 18. g3 {[%clk 0:02:34]}  Qd7 {[%clk 0:02:19]} 19. Kh2 {[%clk 0:02:34]}  Kh8 {[%clk 0:01:40]} 20. Bf4 {[%clk 0:02:25]}  Rad8 {[%clk 0:01:27]} 21. Qxf3 {[%clk 0:02:24]}  Qxd3 {[%clk 0:01:25]} 22. Qxd3 {[%clk 0:02:24]}  Rxd3 {[%clk 0:01:26]} 23. Nc5 {[%clk 0:02:25]}  Rd5 {[%clk 0:01:19]} 24. Kg2 {[%clk 0:02:07]}  Rxe5 {[%clk 0:01:13]} 25. Bxe5 {[%clk 0:02:06]}  Nc4 {[%clk 0:01:14]} 26. Bd4 {[%clk 0:02:06]}  Nxb2 {[%clk 0:01:12]} 27. Re1 {[%clk 0:02:06]}  Re8 {[%clk 0:00:47]} 28. Be5 {[%clk 0:01:57]}  Kg8 {[%clk 0:00:29]} 29. f4 {[%clk 0:01:56]}  Nd3 {[%clk 0:00:28]} 30. Nxd3 {[%clk 0:01:48]}  Bxd3 {[%clk 0:00:29]} 31. Rd1 {[%clk 0:01:49]}  Bc4 {[%clk 0:00:29]} 32. Rd7 {[%clk 0:01:48]}  Bf7 {[%clk 0:00:28]} 33. Rxc7 {[%clk 0:01:48]}  a6 {[%clk 0:00:27]} 34. Ra7 {[%clk 0:01:44]}  g5 {[%clk 0:00:23]} 35. Rxa6 {[%clk 0:01:42]}  gxf4 {[%clk 0:00:23]} 36. gxf4 {[%clk 0:01:43]}  Rd8 {[%clk 0:00:20]} 37. Kg3 {[%clk 0:01:41]}  Rd3+ {[%clk 0:00:16]} 38. Kg4 {[%clk 0:01:40]}  Be6+ {[%clk 0:00:16]} 39. f5 {[%clk 0:01:40]}  Bd5 {[%clk 0:00:16]} 40. Ra8+ {[%clk 0:01:39]}  Kf7 {[%clk 0:00:16]} 41. Ra7+ {[%clk 0:01:40]}  Kg8 {[%clk 0:00:16]} 42. h4 {[%clk 0:01:39]}  Rd2 {[%clk 0:00:13]} 43. a4 {[%clk 0:01:36]}  Ra2 {[%clk 0:00:13]} 44. a5 {[%clk 0:01:36]}  Bc4 {[%clk 0:00:12]} 45. Kg5 {[%clk 0:01:36]}  Kf8 {[%clk 0:00:05]} 46. Kh6 {[%clk 0:01:34]}  Ke8 {[%clk 0:00:02]} 47. Kxh7 {[%clk 0:01:32]}  Bd3 {[%clk 0:00:03]} 48. Kg6 {[%clk 0:01:30]}  Rg2+ {[%clk 0:00:03]} 49. Kf6 {[%clk 0:01:29]}  Rf2 {[%clk 0:00:04]} 50. Ke6 {[%clk 0:01:29]}  Bxf5+ {[%clk 0:00:04]} 51. Kd6 {[%clk 0:01:30]}  Be4 {[%clk 0:00:04]} 52. h5 {[%clk 0:01:27]}  Bd5 {[%clk 0:00:03]} 53. h6 {[%clk 0:01:25]}  Rg2 {[%clk 0:00:03]} 54. h7 {[%clk 0:01:24]}  Rg6+ {[%clk 0:00:04]} 55. Kc5 {[%clk 0:01:24]}  Rh6 {[%clk 0:00:04]} 56. h8=Q+ {[%clk 0:01:24]}  Rxh8 {[%clk 0:00:05]} 57. Bxh8 {[%clk 0:01:25]}  Kd8 {[%clk 0:00:05]} 58. Be5 {[%clk 0:01:25]}  Kc8 {[%clk 0:00:06]} 59. Rc7+ {[%clk 0:01:25]}  Kb8 {[%clk 0:00:05]} 60. Rxc6+ {[%clk 0:01:26]}  Ka7 {[%clk 0:00:06]} 61. Kxd5 {[%clk 0:01:26]}  Kb7 {[%clk 0:00:07]} 62. a6+ {[%clk 0:01:25]}  Ka7 {[%clk 0:00:08]} 63. Bd4+ {[%clk 0:01:25]}  Ka8 {[%clk 0:00:08]} 64. Rc8# {[%clk 0:01:23]} 1-0


[Site "https://www.chess.com"]

[Event "Titled Tuesday Blitz July 26 Late 2022"]
[White "Kovacevic, Radmila"]
[Black "Wagner, Dennis"]
[WhiteFideId "933171"]
[BlackFideId "24650684"]
[WhiteElo "2157"]
[BlackElo "2355"]
[Result "0-1"]
[Round "05"]
[TimeControl "180+1"]
[Date "2022.07.26"]
[WhiteClock "0:00:32"]
[BlackClock "0:00:40"]

1. e4 {[%clk 0:02:56]}  e5 {[%clk 0:02:59]} 2. d4 {[%clk 0:02:56]}  exd4 {[%clk 0:02:59]} 3. Qxd4 {[%clk 0:02:56]}  Nc6 {[%clk 0:02:56]} 4. Qe3 {[%clk 0:02:57]}  Nf6 {[%clk 0:02:53]} 5. Bd2 {[%clk 0:02:57]}  Bb4 {[%clk 0:02:19]} 6. c3 {[%clk 0:02:56]}  Ba5 {[%clk 0:02:17]} 7. Bc4 {[%clk 0:02:49]}  O-O {[%clk 0:02:15]} 8. Ne2 {[%clk 0:02:23]}  Re8 {[%clk 0:02:06]} 9. Ng3 {[%clk 0:01:55]}  d5 {[%clk 0:02:04]} 10. Bd3 {[%clk 0:01:54]}  dxe4 {[%clk 0:01:58]} 11. Be2 {[%clk 0:01:34]}  Bb6 {[%clk 0:01:56]} 12. Qg5 {[%clk 0:01:29]}  h6 {[%clk 0:01:40]} 13. Qh4 {[%clk 0:01:28]}  Bxf2+ {[%clk 0:01:33]} 14. Kxf2 {[%clk 0:01:16]}  Ng4+ {[%clk 0:01:34]} 15. Qxg4 {[%clk 0:01:16]}  Bxg4 {[%clk 0:01:33]} 16. Bxg4 {[%clk 0:01:16]}  Ne5 {[%clk 0:01:16]} 17. Be2 {[%clk 0:01:16]}  Qf6+ {[%clk 0:01:11]} 18. Ke1 {[%clk 0:01:13]}  Nd3+ {[%clk 0:01:09]} 19. Bxd3 {[%clk 0:01:11]}  exd3+ {[%clk 0:01:10]} 20. Kd1 {[%clk 0:01:11]}  Qf2 {[%clk 0:01:05]} 21. Na3 {[%clk 0:01:04]}  Qxg2 {[%clk 0:01:04]} 22. Nc4 {[%clk 0:01:02]}  Re2 {[%clk 0:01:02]} 23. Re1 {[%clk 0:00:38]}  Rxe1+ {[%clk 0:00:56]} 24. Kxe1 {[%clk 0:00:39]}  Re8+ {[%clk 0:00:41]} 25. Ne3 {[%clk 0:00:33]}  Qxh2 {[%clk 0:00:41]} 26. Nf1 {[%clk 0:00:32]}  Qe2# {[%clk 0:00:40]} 0-1


[Site "https://www.chess.com"]